[Event "Lviv Tradition May 2018"]
[Site "Lviv"]
[Date "2018.05.17"]
[Round "2"]
[White "Goluch, Piotr"]
[Black "Peng, Li Min"]
[Result "1/2-1/2"]
[ECO "D76"]
[WhiteElo "2351"]
[BlackElo "2320"]
[Annotator "NA"]
[PlyCount "159"]
[EventDate "2018.??.??"]
[EventType "tourn"]
[EventCountry "UKR"]
[SourceTitle "playchess.com"]
[Source "ChessBase"]
[SourceQuality "1"]
[TimeControl "5400+30"]

1. d4 {[%emt 0:00:00]} Nf6 {[%emt 0:02:16]} 2. Nf3 {[%emt 0:00:00]} g6 {[%emt 0:00:06]} 3. c4 {[%emt 0:00:08]} Bg7 {[%emt 0:00:04]} 4. g3 {[%emt 0:00:05]} O-O {[%emt 0:00:05]} 5. Bg2 {[%emt 0:00:03]} d5 {[%emt 0:00:26]} 6. cxd5 {[%emt 0:00:06]} Nxd5 {[%emt 0:00:03]} 7. O-O {[%emt 0:00:08]} Nb6 {[%emt 0:00:02]} 8. Nc3 {[%emt 0:00:07]} Nc6 {[%emt 0:00:03]} 9. e3 {[%emt 0:00:04]} Re8 {[%emt 0:00:02]} 10. Re1 {[%emt 0:00:34]} a5 {[%emt 0:00:06] D76: Fianchetto Grünfeld: Main Line with 7...Nb6} 11. Qe2 {[%emt 0:01:39]} e5 {[%emt 0:04:27]} 12. Nxe5 {[%emt 0:00:05]} Nxe5 {[%emt 0:00:04]} 13. dxe5 {[%emt 0:00:03]} Bxe5 {[%emt 0:00:09]} 14. e4 {[%emt 0:01:23]} Be6 {[%emt 0:00:25]} 15. f4 {[%emt 0:00:40] LiveBook: 39 Games} Bd4+ {[%emt 0:06:56]} 16. Be3 {[%emt 0:02:31] [#]} Bxe3+ $146 {[%emt 0:04:14]} ({Predecessor:} 16... Nc4 17. Bf2 c6 18. Rad1 Bxf2+ 19. Qxf2 {1-0 (42) Laznicka,V (2636)-Navara,D (2718) Hustopece 2010}) 17. Qxe3 {[%emt 0:00:05]} Qe7 {[%emt 0:00:06]} 18. e5 {[%emt 0:08:25]} Nc4 {[%emt 0:01:05]} (18... Red8 $14) 19. Qf2 {[%emt 0:00:31]} Red8 {[%emt 0:17:22]} 20. Ne4 {[%emt 0:00:33]} ({Of course not} 20. Bxb7 Rab8 $11) 20... Qb4 {[%emt 0:06:04]} 21. g4 {[%emt 0:05:39]} Qb6 {[%emt 0:06:28]} 22. b3 {[%emt 0:02:05]} Qxf2+ {[%emt 0:04:25]} 23. Kxf2 {[%emt 0:03:35]} Nb2 {[%emt 0:00:22]} 24. Kg3 {[%emt 0:13:22]} Kg7 {[%emt 0:02:46] [#]} 25. Re2 $1 {[%emt 0:00:46]} Nd3 $1 {[%emt 0:01:49]} 26. Ng5 {[%emt 0:02:56]} c6 {[%emt 0:02:01]} 27. Rf1 {[%emt 0:03:37]} (27. Rd2 $16 Nb4 28. Rad1 (28. Nxe6+ fxe6 29. Rad1 Rxd2 $14 30. Rxd2 Nd5 $14) 28... Rxd2 29. Rxd2) 27... h6 {[%emt 0:02:22]} 28. Nxe6+ {[%emt 0:06:22]} fxe6 {[%emt 0:00:04]} 29. f5 {[%emt 0:04:54]} gxf5 {[%emt 0:00:26]} 30. gxf5 {[%emt 0:00:05]} exf5 {[%emt 0:00:11]} 31. Rxf5 {[%emt 0:01:18]} Rf8 {[%emt 0:00:03]} 32. Be4 {[%emt 0:00:43]} Nc5 {[%emt 0:00:28]} 33. Kf4 {[%emt 0:01:04]} Rxf5+ {[%emt 0:02:10]} 34. Bxf5 {[%emt 0:00:09]} Rf8 {[%emt 0:00:29]} 35. Rg2+ {[%emt 0:02:46]} Kh8 {[%emt 0:01:02]} 36. e6 {[%emt 0:05:48]} Nxe6+ {[%emt 0:01:05]} 37. Ke5 {[%emt 0:00:02]} Nd4 {[%emt 0:02:39]} 38. Bd7 {[%emt 0:08:04]} Nb5 {[%emt 0:09:39]} 39. a4 {[%emt 0:08:25]} Nc3 {[%emt 0:03:36]} 40. Rg6 {[%emt 0:01:57]} Rf1 {[%emt 0:06:16]} 41. Bf5 {[%emt 0:02:35]} Re1+ {[%emt 0:02:54]} 42. Kf6 {[%emt 0:06:16]} Ne4+ {[%emt 0:00:55]} 43. Ke7 {[%emt 0:00:49]} Ng5+ {[%emt 0:11:05]} (43... Ng3+ $5 44. Be6 Ne4 $11) 44. Kd8 {[%emt 0:00:51]} Nf7+ {[%emt 0:00:27]} (44... Nf3 $1 $14) 45. Kc7 {[%emt 0:01:46]} Re5 {[%emt 0:01:00]} 46. Be6 {[%emt 0:02:26]} Ng5 {[%emt 0:01:42]} 47. Bd7 {[%emt 0:02:44]} ({Better is} 47. Bc4 $16) 47... Kh7 {[%emt 0:00:36]} 48. Rf6 {[%emt 0:01:05]} Ne4 {[%emt 0:00:56]} (48... Re7 $14) 49. Rf5 {[%emt 0:01:46]} Re7 {[%emt 0:01:45]} 50. Kd8 {[%emt 0:00:30]} Rg7 {[%emt 0:00:08]} 51. Rf8 {[%emt 0:02:13]} Rg1 {[%emt 0:00:23]} 52. Rf5 {[%emt 0:01:18]} Nd2 $11 {[%emt 0:00:18]} 53. Be6 {[%emt 0:00:41]} Re1 {[%emt 0:00:19]} 54. Kd7 {[%emt 0:00:59]} Re3 {[%emt 0:00:08]} 55. Rxa5 {[%emt 0:01:04]} Nxb3 {[%emt 0:00:03]} 56. Bf5+ {[%emt 0:00:04]} Kg7 {[%emt 0:00:13]} 57. Ra7 {[%emt 0:00:06]} Kf6 {[%emt 0:00:27]} 58. Bc2 {[%emt 0:00:07]} Nd4 {[%emt 0:01:16]} 59. Bb1 {[%emt 0:01:02]} b5 {[%emt 0:00:01]} 60. Kd6 {[%emt 0:00:22]} Re6+ {[%emt 0:01:48]} 61. Kc5 {[%emt 0:00:11]} Nb3+ {[%emt 0:00:02]} 62. Kb6 {[%emt 0:00:42]} bxa4 {[%emt 0:01:09]} 63. Rxa4 {[%emt 0:00:05]} Nd2 {[%emt 0:00:33]} 64. Ba2 {[%emt 0:00:53]} Re2 {[%emt 0:00:21]} 65. Kxc6 {[%emt 0:01:18]} Rxh2 {[%emt 0:00:10]} 66. Bd5 {[%emt 0:00:05]} Rf2 {[%emt 0:00:46]} 67. Kd6 {[%emt 0:00:13]} Nf1 {[%emt 0:00:26]} 68. Ra8 {[%emt 0:00:06]} Kg5 {[%emt 0:00:07]} 69. Rg8+ {[%emt 0:00:15]} Kh4 {[%emt 0:00:08]} 70. Ke5 {[%emt 0:01:01]} Ng3 {[%emt 0:00:26]} 71. Be6 {[%emt 0:00:34]} Re2+ {[%emt 0:00:21]} 72. Kd5 {[%emt 0:00:54]} Rd2+ {[%emt 0:00:03]} 73. Ke5 {[%emt 0:00:13]} Re2+ {[%emt 0:00:01]} 74. Kd5 {[%emt 0:00:05]} h5 {[%emt 0:01:07]} 75. Bf7 {[%emt 0:00:39]} Kh3 {[%emt 0:01:05]} 76. Rh8 {[%emt 0:00:22]} Kg4 {[%emt 0:00:53]} 77. Be6+ {[%emt 0:00:37]} Kf3 {[%emt 0:00:32]} 78. Bf7 {[%emt 0:00:32]} Rh2 {[%emt 0:00:28]} 79. Ke5 {[%emt 0:00:04]} h4 {[%emt 0:00:27]} 80. Bd5+ {[%emt 0:00:04] Ke4+} 1/2-1/2

[Event "Lviv Tradition May 2018"]
[Site "Lviv"]
[Date "2018.05.17"]
[Round "2"]
[White "Terletsky, Oleg"]
[Black "Galperin, Platon"]
[Result "0-1"]
[ECO "C09"]
[WhiteElo "2288"]
[BlackElo "2332"]
[Annotator "ChessBase"]
[PlyCount "102"]
[EventDate "2018.??.??"]
[EventType "tourn"]
[EventCountry "UKR"]
[SourceTitle "playchess.com"]
[Source "ChessBase"]
[SourceQuality "1"]
[TimeControl "5400+30"]

1. e4 {[%emt 0:00:00]} e6 {[%emt 0:06:52]} 2. d4 {[%emt 0:00:00]} d5 {[%emt 0:00:16]} 3. Nd2 {[%emt 0:00:00]} c5 {[%emt 0:00:04]} 4. Ngf3 {[%emt 0:00:00]} Nc6 {[%emt 0:00:04]} 5. exd5 {[%emt 0:00:00]} exd5 {[%emt 0:00:03]} 6. Bb5 {[%emt 0:00:05]} Qe7+ {[%emt 0:00:09]} 7. Qe2 {[%emt 0:00:22]} Qxe2+ {[%emt 0:00:19]} 8. Kxe2 {[%emt 0:00:03]} a6 {[%emt 0:00:09]} 9. Bxc6+ {[%emt 0:00:35]} bxc6 {[%emt 0:00:02]} 10. dxc5 {[%emt 0:00:28]} Bxc5 {[%emt 0:06:42]} 11. Nb3 {[%emt 0:00:06]} Bd6 {[%emt 0:01:44]} 12. Be3 {[%emt 0:00:39]} Nf6 {[%emt 0:20:34]} 13. Bc5 {[%emt 0:06:40]} Bc7 {[%emt 0:01:18]} 14. Nfd4 {[%emt 0:07:52]} Bd7 {[%emt 0:03:48]} 15. f3 {[%emt 0:01:11]} O-O-O {[%emt 0:02:34]} 16. Kf2 {[%emt 0:07:21]} a5 {[%emt 0:01:55]} 17. a4 {[%emt 0:01:28]} h5 {[%emt 0:03:31]} 18. Nc1 {[%emt 0:05:20]} h4 {[%emt 0:10:22]} 19. Nd3 {[%emt 0:02:32]} Rde8 {[%emt 0:00:23]} 20. b4 {[%emt 0:06:02]} g5 {[%emt 0:06:05]} 21. b5 {[%emt 0:03:06]} g4 {[%emt 0:05:10]} 22. bxc6 {[%emt 0:01:39]} Be6 {[%emt 0:04:30]} 23. Rab1 {[%emt 0:05:19]} h3 {[%emt 0:06:39]} 24. Rb7 {[%emt 0:06:29]} hxg2 {[%emt 0:00:26]} 25. Rhb1 {[%emt 0:06:42]} g1=Q+ {[%emt 0:11:13]} 26. Kxg1 {[%emt 0:00:34]} Bxh2+ {[%emt 0:00:07]} 27. Kf1 {[%emt 0:06:52]} gxf3 {[%emt 0:01:50]} 28. Nf2 {[%emt 0:00:23]} Ne4 {[%emt 0:02:57]} 29. Nxe4 {[%emt 0:04:14]} dxe4 {[%emt 0:00:24]} 30. Ra7 {[%emt 0:05:20]} Bb8 {[%emt 0:01:20]} 31. Rxb8+ {[%emt 0:09:31]} Kxb8 {[%emt 0:00:01]} 32. Rb7+ {[%emt 0:07:55]} Ka8 {[%emt 0:00:02]} 33. Ra7+ {[%emt 0:05:56]} Kb8 {[%emt 0:00:01]} 34. Rb7+ {[%emt 0:01:12]} Ka8 {[%emt 0:05:05]} 35. Kf2 {[%emt 0:00:18]} e3+ {[%emt 0:00:31]} 36. Kxe3 {[%emt 0:00:49]} Bc8+ {[%emt 0:00:07]} 37. Kxf3 {[%emt 0:00:53]} Bxb7 {[%emt 0:00:02]} 38. cxb7+ {[%emt 0:00:15]} Kxb7 {[%emt 0:00:02]} 39. Nb3 {[%emt 0:00:15]} Rh3+ {[%emt 0:01:24]} 40. Kf4 {[%emt 0:00:14]} Rc3 {[%emt 0:00:54]} 41. Bd4 {[%emt 0:00:23]} Rxc2 {[%emt 0:00:20]} 42. Nxa5+ {[%emt 0:00:08]} Kc7 {[%emt 0:00:47]} 43. Kf5 {[%emt 0:00:39]} Ra8 {[%emt 0:00:32]} 44. Be5+ {[%emt 0:00:12]} Kd7 {[%emt 0:00:14]} 45. Nb3 {[%emt 0:00:20]} Rxa4 {[%emt 0:00:12]} 46. Nd4 {[%emt 0:00:04]} Rf2+ {[%emt 0:00:16]} 47. Ke4 {[%emt 0:00:10]} f5+ {[%emt 0:00:20]} 48. Ke3 {[%emt 0:00:21]} Rf1 {[%emt 0:00:42]} 49. Ke2 {[%emt 0:00:05]} Rh1 {[%emt 0:00:32]} 50. Kf3 {[%emt 0:00:16]} Rh3+ {[%emt 0:00:21]} 51. Kf2 {[%emt 0:00:45]} Ra2+ {[%emt 0:00:13]} 0-1

[Event "Lviv Tradition May 2018"]
[Site "Lviv"]
[Date "2018.05.17"]
[Round "2"]
[White "Oglaza, Oskar"]
[Black "Fiedorek, Michal"]
[Result "1/2-1/2"]
[ECO "B67"]
[WhiteElo "2279"]
[BlackElo "2081"]
[Annotator "NA"]
[PlyCount "105"]
[EventDate "2018.??.??"]
[EventType "tourn"]
[EventCountry "UKR"]
[SourceTitle "playchess.com"]
[Source "ChessBase"]
[SourceQuality "1"]
[TimeControl "5400+30"]

{[%evp 8,95,32,21,37,42,32,15,29,28,44,27,29,22,29,37,27,17,25,27,32,-15,3,-7,0,-27,0,0,6,-2,0,0,0,-22,-15,-22,32767,-14,-33,-58,-33,-45,-58,32767,-64,-76,-67,32767,32767,32767,32767,32767,32767,32767,32767,32767,0,-57,32767,32767,32767,32767,32767,32767,-85,-159,-150,-395,-19,-15,-17,-23,-18,32767,32767,32767,32767,-19,-23,-18,-16,-22,-17,-16,-19,-16,-11,-4,-8,-9]} 1. e4 {[%emt 0:00:00]} c5 {[%emt 0:00:04]} 2. Nf3 {[%emt 0:00:00]} d6 {[%emt 0:00:04]} 3. d4 {[%emt 0:00:00]} cxd4 {[%emt 0:00:03]} 4. Nxd4 {[%emt 0:00:00]} Nf6 {[%emt 0:00:18]} 5. Nc3 {[%emt 0:00:00]} Nc6 {[%emt 0:00:11]} 6. Bg5 {[%emt 0:00:08]} e6 {[%emt 0:00:09]} 7. Qd2 {[%emt 0:00:17]} a6 {[%emt 0:00:17]} 8. O-O-O {[%emt 0:00:09]} Bd7 {[%emt 0:00:11]} 9. f3 {[%emt 0:00:15]} Be7 {[%emt 0:00:49]} 10. h4 {[%emt 0:00:26]} h6 {[%emt 0:00:54] B67: Sicilian: Richter-Rauzer: 7...a6 8 0-0-0 Bd7, lines without 9 f4 Be7} 11. Be3 {[%emt 0:00:15]} h5 {[%emt 0:00:42]} 12. Bg5 {[%emt 0:00:30] LiveBook: 105 Games} (12. Kb1 Qc7 13. Bg5 Ne5 14. Bd3 b5 15. Rhe1 b4 16. Nce2 a5 17. f4 Neg4 18. Ng1 {½-½ (91) Short,N (2678)-Li,C (2732) Riadh 2017}) 12... Nxd4 {[%emt 0:01:06]} 13. Qxd4 {[%emt 0:00:16]} Qc7 {[%emt 0:01:13] [#]} 14. Bd3 $146 {[%emt 0:10:40]} ({Predecessor:} 14. Kb1 b5 15. Qd2 b4 16. Ne2 a5 17. Nd4 Rb8 18. g3 {0-1 (33) Kriebel,T (2515)-Czarnota,P (2556) Legnica 2017}) 14... b5 {[%emt 0:07:54]} 15. a3 {[%emt 0:04:45]} Bc6 {[%emt 0:09:17]} 16. Rde1 {[%emt 0:08:14]} Qa7 {[%emt 0:08:17]} 17. Qxa7 Rxa7 {[%emt 0:00:33]} 18. Ne2 {[%emt 0:02:59]} Rc7 {[%emt 0:05:06]} 19. Nd4 {[%emt 0:01:33]} Bb7 {[%emt 0:00:37]} 20. Kd2 {[%emt 0:01:35]} Nd7 {[%emt 0:02:54]} 21. Bxe7 {[%emt 0:01:54]} Kxe7 {[%emt 0:00:15]} 22. Ra1 {[%emt 0:03:56]} Nb6 {[%emt 0:04:20]} 23. b3 {[%emt 0:01:05]} g6 {[%emt 0:07:02]} 24. Rae1 {[%emt 0:03:04]} Rd8 {[%emt 0:04:18]} 25. Rhf1 {[%emt 0:09:36]} e5 {[%emt 0:06:36]} 26. Ne2 {[%emt 0:00:05]} d5 {[%emt 0:01:31]} 27. Nc3 {[%emt 0:16:50]} dxe4 {[%emt 0:03:36]} 28. Nxe4 {[%emt 0:07:06]} f5 {[%emt 0:01:27]} 29. Nc3 {[%emt 0:05:46]} Kf6 {[%emt 0:00:45]} 30. g4 $11 {[%emt 0:00:55]} Re7 {[%emt 0:10:42]} 31. Kc1 {[%emt 0:02:43]} Rc7 {[%emt 0:06:28]} ({Reject} 31... hxg4 $6 32. fxg4 f4 33. h5 $11) (31... Nd7 $17 32. gxh5 gxh5) 32. Kb2 {[%emt 0:00:38]} Rdc8 {[%emt 0:00:31]} 33. Ne2 {[%emt 0:05:48]} hxg4 {[%emt 0:00:58]} 34. fxg4 {[%emt 0:00:12]} e4 {[%emt 0:03:59]} 35. Nd4 {[%emt 0:01:12]} exd3 {[%emt 0:09:30]} 36. Re6+ {[%emt 0:00:12]} Kf7 {[%emt 0:01:19]} 37. Rxb6 $2 {[%emt 0:00:22]} (37. cxd3 Rd8 38. Rxb6 Rxd4 39. gxf5) 37... dxc2 $2 {[%emt 0:00:26]} ({Black should try} 37... Rxc2+ $1 $19 38. Nxc2 Rxc2+ 39. Ka1 Bg2) 38. gxf5 {[%emt 0:08:24]} c1=Q+ {[%emt 0:03:39]} 39. Rxc1 {[%emt 0:00:05]} Rxc1 {[%emt 0:00:04]} 40. fxg6+ {[%emt 0:00:04]} Ke8 {[%emt 0:00:47]} 41. Rxb7 {[%emt 0:01:12]} Rg1 {[%emt 0:01:08]} 42. a4 $1 {[%emt 0:05:54]} Rg2+ {[%emt 0:00:48]} 43. Ka3 {[%emt 0:00:16]} Rxg6 {[%emt 0:00:28]} 44. axb5 {[%emt 0:00:15]} axb5 {[%emt 0:00:37]} 45. Nxb5 {[%emt 0:00:28]} Ra8+ {[%emt 0:00:26]} 46. Kb4 {[%emt 0:00:40]} Rg4+ {[%emt 0:00:19]} 47. Kc5 {[%emt 0:00:10]} Rc8+ {[%emt 0:00:24]} 48. Kb6 $11 {[%emt 0:01:25]} Rg6+ {[%emt 0:00:33]} 49. Ka7 {[%emt 0:01:21]} Rcc6 {[%emt 0:00:46]} 50. h5 {[%emt 0:00:30]} Rh6 {[%emt 0:00:28]} 51. b4 {[%emt 0:00:35]} Rxh5 {[%emt 0:00:27]} 52. Rb8+ {[%emt 0:00:23]} Kd7 {[%emt 0:00:28]} 53. Rb7+ {[%emt 0:00:05]} 1/2-1/2

[Event "Lviv Tradition May 2018"]
[Site "Lviv"]
[Date "2018.05.17"]
[Round "3"]
[White "Bogdanov, Egor"]
[Black "Shkuran, Danylo"]
[Result "1/2-1/2"]
[ECO "B13"]
[WhiteElo "2335"]
[BlackElo "2395"]
[Annotator "NA"]
[PlyCount "61"]
[EventDate "2018.??.??"]
[EventType "tourn"]
[EventCountry "UKR"]
[SourceTitle "playchess.com"]
[Source "ChessBase"]
[SourceQuality "1"]
[TimeControl "5400+30"]

1. e4 {[%emt 0:04:09]} c6 {[%emt 0:05:22]} 2. d4 {[%emt 0:00:08]} d5 {[%emt 0:00:15]} 3. exd5 {[%emt 0:00:10]} cxd5 {[%emt 0:00:05]} 4. c4 {[%emt 0:00:07]} Nf6 {[%emt 0:00:09]} 5. Nc3 {[%emt 0:00:04]} Nc6 {[%emt 0:04:00]} 6. Nf3 {[%emt 0:01:16]} Bg4 {[%emt 0:00:29]} 7. cxd5 {[%emt 0:01:45]} Nxd5 {[%emt 0:00:15]} 8. Qb3 {[%emt 0:00:27]} Bxf3 {[%emt 0:00:26]} 9. gxf3 {[%emt 0:00:07]} e6 {[%emt 0:00:11]} 10. Qxb7 {[%emt 0:00:12]} Nxd4 {[%emt 0:00:10]} 11. Bb5+ {[%emt 0:00:14]} Nxb5 {[%emt 0:00:07]} 12. Qc6+ {[%emt 0:00:15]} Ke7 {[%emt 0:00:11]} 13. Qxb5 {[%emt 0:00:11]} Qd7 {[%emt 0:00:20]} 14. Nxd5+ {[%emt 0:00:13]} Qxd5 {[%emt 0:00:47]} 15. Qxd5 {[%emt 0:00:22]} exd5 {[%emt 0:00:07]} 16. Be3 {[%emt 0:00:09]} Ke6 {[%emt 0:05:35]} 17. O-O-O {[%emt 0:04:09]} Bb4 {[%emt 0:06:35] LiveBook: 59 Games} 18. a3 {[%emt 0:00:38]} Rhc8+ {[%emt 0:05:06] B13: Caro-Kann: Exchange Variation and Panov-Botvinnik Attack} 19. Kb1 {[%emt 0:00:27]} Bc5 {[%emt 0:01:00]} 20. Rhe1 {[%emt 0:00:21]} Bxe3 {[%emt 0:00:18]} 21. fxe3 {[%emt 0:01:09]} (21. Rxe3+ Kd6 22. b3 Re8 23. Kc2 Re6 24. Rd4 Rg6 25. Red3 Rg2 26. Rxd5+ {½-½ (57) Sanikidze,T (2559)-Guidarelli,L (2446) Cappelle-la-Grande 2011}) 21... Rc4 {[%emt 0:03:51]} 22. Rd2 {[%emt 0:01:31]} Rb8 {[%emt 0:00:32]} 23. Ka2 $146 {[%emt 0:00:53]} ({Predecessor:} 23. Rc1 Rb3 {½-½ (23) Sieiro Gonzalez,L (2390)-Hernandez,G (2335) Havana 1998}) 23... a5 {[%emt 0:00:39]} 24. Rg1 {[%emt 0:04:15]} g6 {[%emt 0:00:37]} 25. Rg4 $15 {[%emt 0:00:24]} Rbc8 {[%emt 0:01:07]} 26. Rxc4 {[%emt 0:00:38]} Rxc4 {[%emt 0:01:04]} 27. b3 {[%emt 0:00:17]} Rc3 {[%emt 0:06:41]} 28. Re2 {[%emt 0:01:11]} Rc1 {[%emt 0:00:15]} 29. b4 {[%emt 0:00:46]} axb4 {[%emt 0:01:18]} 30. axb4 {[%emt 0:00:07]} Kd6 {[%emt 0:00:12]} 31. Kb3 {[%emt 0:00:10]} 1/2-1/2

[Event "Lviv Tradition May 2018"]
[Site "Lviv"]
[Date "2018.05.17"]
[Round "3"]
[White "Galperin, Platon"]
[Black "Goluch, Piotr"]
[Result "0-1"]
[ECO "A05"]
[WhiteElo "2332"]
[BlackElo "2351"]
[Annotator "NA"]
[PlyCount "122"]
[EventDate "2018.??.??"]
[EventType "tourn"]
[EventCountry "UKR"]
[SourceTitle "playchess.com"]
[Source "ChessBase"]
[SourceQuality "1"]
[TimeControl "5400+30"]

1. Nf3 {[%emt 0:01:13]} Nf6 {[%emt 0:00:08]} 2. g3 {[%emt 0:00:07]} g6 {[%emt 0:00:03]} 3. Bg2 {[%emt 0:00:06]} Bg7 {[%emt 0:00:04]} 4. d4 {[%emt 0:00:05]} O-O {[%emt 0:00:05]} 5. O-O {[%emt 0:00:06]} d6 {[%emt 0:00:03]} 6. b3 {[%emt 0:00:05]} Nbd7 {[%emt 0:02:06]} 7. Bb2 {[%emt 0:00:31]} c6 {[%emt 0:00:06]} 8. c4 {[%emt 0:05:28]} Rb8 {[%emt 0:01:49] E60: King's Indian: Unusual lines and Fianchetto Variation without Nc3} (8... Re8 9. Nc3 e5 10. e4 exd4 11. Nxd4 Nc5 12. Re1 Ng4 13. b4 Qb6 14. a3 a5 15. Na2 axb4 16. axb4 Na4 {0-1 (16) Vachier Lagrave,M (2795)-Grischuk,A (2750) chess.com INT 2017}) 9. Qc2 {[%emt 0:12:17]} b5 {[%emt 0:00:27]} 10. Nfd2 $146 {[%emt 0:01:42]} ({Predecessor:} 10. Nbd2 Bb7 11. Rfd1 d5 12. c5 a5 13. a3 Ne8 14. e4 Nc7 15. e5 f5 16. Bc3 {½-½ (28) Lida Garcia,F (2140)-Bosco,R (2186) Buenos Aires 2001}) 10... Qb6 {[%emt 0:07:11]} 11. Nc3 {[%emt 0:03:24]} a5 {[%emt 0:00:47]} 12. cxb5 {[%emt 0:01:17]} cxb5 {[%emt 0:00:03]} 13. a4 {[%emt 0:00:08]} b4 {[%emt 0:04:23]} 14. Nc4 {[%emt 0:06:07]} Qd8 {[%emt 0:00:41]} 15. Nb5 $1 {[%emt 0:00:43]} Bb7 {[%emt 0:00:18]} 16. Rac1 {[%emt 0:08:46]} Bxg2 {[%emt 0:00:18]} 17. Kxg2 {[%emt 0:00:03]} d5 {[%emt 0:04:04]} 18. Ne5 {[%emt 0:05:07]} Nxe5 {[%emt 0:00:10]} 19. dxe5 {[%emt 0:00:02]} Ng4 {[%emt 0:00:27]} 20. Na7 {[%emt 0:03:49]} Qd7 {[%emt 0:10:26]} (20... Nxe5 $16 21. Bxe5 Bxe5) 21. Qc7 {[%emt 0:03:43]} (21. Nc6 $18 {ist der präzise Gewinnweg.}) 21... Qe6 $2 {[%emt 0:00:02]} (21... Qxc7 $16 22. Rxc7 Nxe5) 22. Nc6 {[%emt 0:00:44]} Rbe8 {[%emt 0:00:04]} 23. h3 {[%emt 0:00:54]} ({Weaker is} 23. Qxa5 Nxe5 24. Nd4 (24. Nxb4 Rb8 $16) 24... Qd7 $16) 23... Nh6 {[%emt 0:00:04]} 24. Qxa5 {[%emt 0:01:05]} f6 {[%emt 0:00:15]} 25. Nxb4 $18 {[%emt 0:07:20]} d4 {[%emt 0:02:52]} 26. Qd5 {[%emt 0:03:13]} Qxd5+ {[%emt 0:00:05]} 27. Nxd5 {[%emt 0:00:03]} fxe5 {[%emt 0:00:04]} 28. b4 {[%emt 0:00:24]} Nf5 {[%emt 0:02:14]} 29. Rc6 {[%emt 0:07:53]} Rd8 {[%emt 0:02:36]} 30. Nb6 {[%emt 0:01:14]} d3 {[%emt 0:00:24]} 31. exd3 {[%emt 0:04:25]} Rxd3 {[%emt 0:00:05]} 32. Rc3 {[%emt 0:02:07]} Rd2 {[%emt 0:01:24]} 33. Nc4 {[%emt 0:00:32]} Re2 {[%emt 0:00:12]} 34. Rcc1 {[%emt 0:03:38]} Bh6 {[%emt 0:01:04]} 35. Rc3 {[%emt 0:04:10]} Rc8 {[%emt 0:00:08]} 36. Nxe5 {[%emt 0:02:34]} Rxc3 {[%emt 0:06:00]} 37. Bxc3 {[%emt 0:00:03]} Rc2 {[%emt 0:00:02]} 38. Be1 {[%emt 0:03:07]} Ne3+ {[%emt 0:00:45]} 39. Kg1 {[%emt 0:00:00]} Nxf1 {[%emt 0:00:05]} 40. Kxf1 {[%emt 0:00:07]} Bg7 {[%emt 0:04:57]} 41. Nd3 {[%emt 0:01:41]} Bd4 {[%emt 0:02:37]} 42. a5 {[%emt 0:01:13]} e5 {[%emt 0:00:03]} 43. f3 {[%emt 0:01:28]} Kf7 {[%emt 0:00:52]} 44. b5 {[%emt 0:01:17]} Ke6 {[%emt 0:00:06]} 45. b6 {[%emt 0:01:41]} Kd7 {[%emt 0:00:08]} 46. b7 {[%emt 0:01:12]} Kc7 {[%emt 0:00:07]} 47. a6 {[%emt 0:00:06]} Kb8 {[%emt 0:03:44]} 48. Nb4 {[%emt 0:02:30]} Rc1 {[%emt 0:00:04]} 49. Ke2 {[%emt 0:00:34]} Rxe1+ {[%emt 0:00:05]} 50. Kxe1 {[%emt 0:01:56]} Bc3+ {[%emt 0:00:03]} 51. Ke2 {[%emt 0:00:03]} Bxb4 {[%emt 0:00:04]} 52. Kd3 {[%emt 0:00:02]} Ka7 {[%emt 0:01:31]} 53. Kc4 {[%emt 0:00:05]} Bd6 {[%emt 0:00:06]} 54. Kd5 {[%emt 0:02:04]} Bb8 {[%emt 0:00:13]} 55. Ke4 {[%emt 0:00:58]} Kxa6 {[%emt 0:00:11]} 56. f4 {[%emt 0:00:02]} Kxb7 {[%emt 0:00:09]} 57. fxe5 {[%emt 0:00:20]} Kc6 {[%emt 0:00:07]} 58. h4 {[%emt 0:00:13]} Kd7 {[%emt 0:00:28]} 59. g4 {[%emt 0:01:08]} Ke6 {[%emt 0:00:07]} 60. Kf4 {[%emt 0:00:29]} Bxe5+ {[%emt 0:00:59]} 61. Kg5 {[%emt 0:00:02]} Bf6+ {[%emt 0:00:25]} 0-1

[Event "Lviv Tradition May 2018"]
[Site "Lviv"]
[Date "2018.05.17"]
[Round "3"]
[White "Peng, Li Min"]
[Black "Oglaza, Oskar"]
[Result "1-0"]
[ECO "E70"]
[WhiteElo "2320"]
[BlackElo "2279"]
[Annotator "NA"]
[PlyCount "83"]
[EventDate "2018.??.??"]
[EventType "tourn"]
[EventCountry "UKR"]
[SourceTitle "playchess.com"]
[Source "ChessBase"]
[SourceQuality "1"]
[TimeControl "5400+30"]

1. d4 {[%emt 0:02:57]} Nf6 {[%emt 0:02:02]} 2. c4 {[%emt 0:00:23]} g6 {[%emt 0:00:47]} 3. Nc3 {[%emt 0:00:18]} Bg7 {[%emt 0:00:17]} 4. e4 {[%emt 0:00:57]} O-O {[%emt 0:00:41]} 5. Bd3 {[%emt 0:00:18]} d6 {[%emt 0:03:10]} 6. Nge2 {[%emt 0:00:12]} Nbd7 {[%emt 0:01:53]} 7. O-O {[%emt 0:00:28]} e5 {[%emt 0:00:22]} 8. d5 {[%emt 0:02:12]} Nh5 {[%emt 0:03:37]} 9. Be3 {[%emt 0:11:28] E70: King's Indian: Miscellaneous lines with 4 e4, including 5 Nge2 and 5 Bd3 0-0 6 Nge2} (9. Bc2 f5 10. exf5 gxf5 11. Ng3 Nxg3 12. fxg3 e4 13. g4 Ne5 14. gxf5 Bxf5 15. Qe2 Qh4 16. Bf4 Nf3+ 17. gxf3 exf3 18. Rxf3 Bxc2 {½-½ (29) Romanov,E (2638)-Smirin,I (2644) Stockholm 2015}) 9... f5 {[%emt 0:05:01] LiveBook: 9 Games} 10. f3 {[%emt 0:00:49]} f4 {[%emt 0:00:54]} 11. Bf2 {[%emt 0:02:14]} g5 {[%emt 0:00:49]} 12. Nc1 $146 {[%emt 0:01:23]} ({Predecessor:} 12. Rc1 Rf6 13. b4 Rh6 14. c5 dxc5 15. bxc5 Nhf6 16. c6 Nf8 17. cxb7 Bxb7 {1-0 (32) Klekowski,M (2096)-Szydlowska,M (2041) Rewal 2006}) 12... Rf7 {[%emt 0:01:48]} 13. Be2 {[%emt 0:00:10]} Nhf6 {[%emt 0:00:54]} 14. Nd3 {[%emt 0:00:11]} Nf8 {[%emt 0:00:40]} 15. c5 {[%emt 0:00:53]} Ng6 {[%emt 0:00:57]} 16. cxd6 {[%emt 0:12:08]} cxd6 {[%emt 0:00:15]} 17. a4 {[%emt 0:00:01]} h5 {[%emt 0:07:44]} 18. Nb5 {[%emt 0:00:59]} g4 {[%emt 0:02:16]} 19. Qb3 {[%emt 0:09:54]} ({But not} 19. Nxa7 g3 $15) 19... Ne8 {[%emt 0:02:28]} (19... g3 $15 20. hxg3 fxg3) 20. Rfc1 {[%emt 0:04:55]} ({Viel schwächer wäre} 20. Nxa7 g3 $17) 20... Bd7 $11 {[%emt 0:10:46]} 21. Kh1 {[%emt 0:01:45]} Qg5 {[%emt 0:03:39]} 22. Nxa7 {[%emt 0:01:36]} g3 {[%emt 0:00:15]} 23. Qxb7 {[%emt 0:05:50]} gxf2 {[%emt 0:01:18]} 24. Qxa8 {[%emt 0:01:33]} Nh4 {[%emt 0:00:06]} 25. Rg1 {[%emt 0:01:15]} fxg1=Q+ {[%emt 0:00:54]} 26. Rxg1 {[%emt 0:00:14]} Bf8 {[%emt 0:11:50]} 27. Nc6 {[%emt 0:02:27]} Rg7 {[%emt 0:01:18]} 28. a5 {[%emt 0:02:33]} Nf6 {[%emt 0:05:31]} 29. Qd8 {[%emt 0:06:12]} Bh3 {[%emt 0:09:39]} 30. Ne1 {[%emt 0:00:59]} Bd7 {[%emt 0:06:59]} 31. Qb6 {[%emt 0:02:27]} Kh8 {[%emt 0:07:27]} 32. a6 {[%emt 0:01:23]} Nxd5 {[%emt 0:00:07]} 33. exd5 {[%emt 0:03:14]} Nf5 {[%emt 0:00:03]} 34. Bd3 {[%emt 0:05:58]} e4 {[%emt 0:05:38]} 35. fxe4 {[%emt 0:03:17]} Ng3+ {[%emt 0:01:16]} 36. hxg3 {[%emt 0:00:05]} Bxc6 {[%emt 0:00:04]} 37. Qxc6 {[%emt 0:00:53]} Qxg3 {[%emt 0:00:25]} 38. Qc8 {[%emt 0:00:59]} Rg4 {[%emt 0:00:11]} 39. Qxf8+ {[%emt 0:00:55]} Kh7 {[%emt 0:00:03]} 40. e5+ {[%emt 0:00:26]} Qxd3 {[%emt 0:00:04]} 41. Qe7+ {[%emt 0:00:05]} Rg7 {[%emt 0:00:05]} 42. Qxg7+ {[%emt 0:00:03]} 1-0